bitfinex-derivatives/quotes_SOLF0:USTF0_20251117
["timestamp","ask_amount","ask_price","bid_price","bid_amount"]
[1763352656015,1.67629954,140.09,140.0,3.38]
[1763352656016,3.15,140.06,140.0,3.38]
[1763352656623,0.05069327,140.04,140.02,0.04770931]
[1763352657620,3.20069327,140.04,140.02,0.04770931]
[1763352658322,3.20069327,140.04,139.98,3.38]
[1763352658525,3.20069327,140.04,139.97,1.67629954]
[1763352658723,3.20069327,140.04,139.97,5.05629954]
[1763352659318,3.20069327,140.04,139.99,0.05418]
[1763352660826,3.20069327,140.04,140.0,3.38]
[1763352661017,3.20069327,140.04,139.99,1.73047954]
[1763352661318,3.20069327,140.04,139.99,0.05418]
[1763352661925,3.20069327,140.04,139.99,3.43418]
[1763352662826,3.20069327,140.04,139.99,5.11047954]
[1763352663025,3.15,140.02,139.99,0.05418]
[1763352667226,3.15,140.0,139.99,0.05418]
[1763352667430,3.15,140.0,139.94,1.67629954]
[1763352667933,3.15,139.98,139.92,5.05629954]
[1763352668229,3.15,139.98,139.93,3.38]
[1763352668534,3.19810979,139.97,139.94,3.42757337]
[1763352668923,3.19810979,139.97,139.94,0.04757337]
[1763352668924,3.15,139.96,139.94,0.04757337]
[1763352676139,3.19810979,139.97,139.94,3.42757337]
[1763352677025,0.04810979,139.97,139.94,3.42757337]
[1763352678039,0.04810979,139.97,139.96,3.22]
[1763352678635,0.04810979,139.97,139.96,4.89629954]
[1763352679030,50.79,140.02,139.97,3.22]
[1763352679234,3.39,140.01,139.98,4.89629954]
[1763352679934,3.39,140.03,139.99,3.22]
[1763352680337,0.04762704,140.02,140.0,3.2725008]
[1763352680631,0.04762704,140.02,140.0,4.94880034]
[1763352680833,3.43762704,140.02,140.0,0.0525008]
[1763352685135,1.67629954,140.01,139.94,6.66199348]
[1763352685441,3.15,139.99,139.94,3.09]
[1763352686340,0.05026475,139.98,139.95,3.13552188]
[1763352686539,0.05026475,139.98,139.95,4.81182142]
[1763352687743,0.05026475,139.98,139.96,3.09]
[1763352690738,0.05026475,139.98,139.97,4.76629954]
[1763352691235,0.05026475,139.98,139.95,3.13552188]
[1763352691448,0.05026475,139.98,139.97,4.76629954]
[1763352692137,0.05026475,139.98,139.97,3.09]
[1763352693737,0.05026475,139.98,139.97,4.76629954]
[1763352696439,0.05026475,139.98,139.96,3.09]
[1763352697736,0.05026475,139.98,139.96,4.76629954]
[1763352697943,0.05026475,139.98,139.97,3.09]
[1763352701551,3.20026475,139.98,139.95,3.13552188]
[1763352701857,0.05026475,139.98,139.95,3.13552188]
[1763352702047,0.05026475,139.98,139.96,3.09]
[1763352702248,3.15,140.05,139.97,3.09]
[1763352703152,3.15,140.05,140.0,3.13705606]
[1763352703153,0.04871853,140.02,140.0,3.13705606]
[1763352703354,3.19871853,140.02,140.0,3.13705606]
[1763352703653,3.19871853,140.02,140.0,0.04705606]
[1763352705450,0.04871853,140.02,140.0,3.13705606]
[1763352707257,3.19871853,140.02,140.0,3.13705606]
[1763352707454,0.04871853,140.02,140.0,3.13705606]
[1763352707656,9.7822763,140.08,140.02,3.09]
[1763352707957,12.40503503,140.11,140.02,3.09]
[1763352708155,30.8447956,140.11,140.04,3.09]
[1763352708353,24.2125193,140.11,140.04,3.09]
[1763352708553,0.05184855,140.09,140.06,0.05353018]
[1763352708751,0.05184855,140.09,140.06,3.14353018]
[1763352709147,3.20184855,140.09,140.06,3.14353018]
[1763352710052,0.05184855,140.09,140.06,3.14353018]
[1763352710858,3.20184855,140.09,140.06,3.14353018]
[1763352711050,0.05184855,140.09,140.06,3.14353018]
[1763352711554,3.15184855,140.09,140.06,0.05353018]
[1763352715462,3.15184855,140.09,140.06,3.26353018]
[1763352715850,0.05184855,140.09,140.06,3.26353018]
[1763352718160,3.15184855,140.09,140.06,3.26353018]
[1763352719064,3.15184855,140.09,140.06,0.05353018]
[1763352721765,3.15184855,140.09,140.06,3.26353018]
[1763352721973,0.05184855,140.09,140.06,3.26353018]
[1763352722660,74.98,140.14,140.08,3.21]
[1763352723061,78.08,140.14,140.08,3.21]
[1763352723354,3.1,140.13,140.08,3.21]
[1763352723569,3.15150288,140.12,140.09,0.0494643]
[1763352728974,3.1,140.11,140.09,0.0494643]
[1763352737181,3.42150288,140.12,140.09,3.4394643]
[1763352737486,3.42150288,140.12,140.09,0.0494643]
[1763352739283,0.05150288,140.12,140.09,3.4394643]
[1763352740181,3.42150288,140.12,140.09,3.4394643]
[1763352741186,0.05150288,140.12,140.09,3.4394643]
[1763352747391,3.20150288,140.12,140.09,3.4394643]
[1763352758303,0.05150288,140.12,140.09,3.4394643]
[1763352765804,3.20150288,140.12,140.09,3.4394643]
[1763352766007,4.8252969,140.11,140.09,0.0494643]
[1763352768404,3.15,140.1,140.09,0.0494643]
[1763352771909,3.15,140.1,140.05,3.14]
[1763352772213,3.39,140.05,140.02,3.39]
[1763352772808,5.0652969,140.06,140.02,3.39]
[1763352773007,0.05393978,140.05,140.03,3.43598522]
[1763352774314,0.05393978,140.05,140.04,3.39]
[1763352782614,1.6752969,140.09,140.04,3.39]
[1763352782816,5.0652969,140.09,140.04,3.39]
[1763352783722,3.44264176,140.08,140.04,3.39]
[1763352784617,0.05264176,140.08,140.04,5.0652969]
[1763352784919,0.05264176,140.08,140.05,3.39]
[1763352785720,74.78,140.12,140.07,3.39]
[1763352785926,74.78,140.12,140.09,3.39]
[1763352787321,74.83301537,140.12,140.09,3.43699148]
[1763352787721,78.22301537,140.12,140.09,3.43699148]
[1763352788020,3.39,140.11,140.09,3.43699148]
[1763352788229,5.0652969,140.11,140.09,0.04699148]
[1763352788428,3.39,140.1,140.09,0.04699148]
[1763352794018,3.39,140.09,140.02,3.39]
[1763352794333,3.39,140.07,140.03,3.39]
[1763352794932,3.39,140.05,140.04,0.0465314]
[1763352795129,3.43676214,140.06,140.04,0.0465314]
[1763352796543,76.50205904,140.06,140.0,6.66199348]
[1763352796835,3.31,140.0,139.93,3.17]
[1763352797017,3.31,139.98,139.93,3.17]
[1763352797733,3.35735548,139.97,139.94,0.04548742]
[1763352798236,3.31,139.96,139.94,0.04548742]
[1763352801636,4.9652969,139.95,139.94,0.04548742]
[1763352801832,3.29,139.94,139.88,3.28]
[1763352802033,4.9652969,139.93,139.88,3.28]
[1763352802235,3.29,139.92,139.88,3.28]
[1763352802840,0.05265763,139.91,139.89,3.33448054]
[1763352803834,5.01795453,139.91,139.89,0.05448054]
[1763352804130,3.29,139.9,139.89,0.05448054]
[1763352804529,5.01795453,139.91,139.89,0.05448054]
[1763352804724,1.72795453,139.91,139.89,3.33448054]
[1763352804929,5.01795453,139.91,139.89,0.05448054]
[1763352806330,1.72795453,139.91,139.89,0.05448054]
[1763352806534,3.29,139.9,139.89,0.05448054]
[1763352807231,0.05265763,139.91,139.89,3.33448054]
[1763352809347,3.34265763,139.91,139.89,3.33448054]
[1763352810029,0.05265763,139.91,139.89,3.33448054]
[1763352811339,1.6752969,139.9,139.89,0.05448054]
[1763352811541,0.05265763,139.91,139.89,3.33448054]
[1763352813444,5.01795453,139.91,139.89,3.33448054]
[1763352813653,3.34265763,139.91,139.89,0.05448054]
[1763352814139,3.34265763,139.91,139.89,3.33448054]
[1763352814746,3.29,139.9,139.85,3.28]
[1763352814952,3.29,139.92,139.87,3.28]
[1763352816045,3.34235108,139.91,139.88,0.05206004]
[1763352816248,3.34235108,139.91,139.88,3.33206004]
[1763352816847,3.34235108,139.91,139.88,0.05206004]
[1763352817050,3.34235108,139.91,139.88,3.33206004]
[1763352818244,0.05235108,139.91,139.88,3.33206004]
[1763352820443,0.05235108,139.91,139.9,3.28]
[1763352823153,3.34235108,139.91,139.88,0.05206004]
[1763352823349,3.34235108,139.91,139.88,3.33206004]
[1763352826350,3.34235108,139.91,139.88,0.05206004]
[1763352829450,3.34235108,139.91,139.88,3.33206004]
[1763352829658,3.34235108,139.91,139.88,0.05206004]
[1763352830962,3.34235108,139.91,139.88,3.33206004]
[1763352834564,3.11235108,139.91,139.88,3.33206004]
[1763352837965,3.11235108,139.91,139.88,0.05206004]
[1763352838161,3.11235108,139.91,139.88,3.25206004]
[1763352840163,3.11235108,139.91,139.88,0.05206004]
[1763352840567,0.05235108,139.91,139.88,3.25206004]
[1763352840768,3.11235108,139.91,139.88,3.25206004]
[1763352842161,0.05235108,139.91,139.88,3.25206004]
[1763352842474,3.06,139.99,139.91,3.2]
[1763352842770,3.06,139.99,139.92,3.2]
[1763352843473,3.06,139.96,139.94,0.05099252]
[1763352844270,3.06,139.96,139.94,3.25099252]
[1763352844676,3.06,139.96,139.94,0.05099252]
[1763352845274,3.10808398,139.97,139.94,3.25099252]
[1763352845477,0.04808398,139.97,139.94,3.25099252]
[1763352846372,3.10808398,139.97,139.94,3.25099252]
[1763352847276,3.10808398,139.97,139.94,0.05099252]
[1763352847979,3.10808398,139.97,139.94,3.25099252]
[1763352848672,0.04808398,139.97,139.94,3.25099252]
[1763352849380,3.10808398,139.97,139.94,3.25099252]
[1763352851176,3.10808398,139.97,139.94,0.05099252]
[1763352854080,0.04808398,139.97,139.94,3.25099252]
[1763352854286,3.10808398,139.97,139.94,3.25099252]
[1763352856282,5.73325787,139.97,139.94,0.05099252]
[1763352856482,3.06,139.96,139.94,0.05099252]
[1763352859588,78.21,139.95,139.94,0.05099252]
[1763352860386,3.09,139.94,139.9,3.2]
[1763352861489,3.18,139.92,139.91,0.04587784]
[1763352862191,3.18,139.92,139.87,3.36]
[1763352862492,3.18,139.92,139.85,3.36]
[1763352863287,3.18,139.92,139.84,6.66199348]
[1763352863288,0.04547736,139.9,139.88,3.36]
[1763352864683,0.04547736,139.9,139.89,3.36]
[1763352864887,46.66517389,139.96,139.89,3.36]
[1763352865190,3.18,139.96,139.9,3.36]
[1763352865390,2.62517389,139.98,139.91,3.36]
[1763352865589,45.1,139.99,139.91,10.02199348]
[1763352865789,45.1,139.99,139.92,3.36]
[1763352865989,0.05337597,139.97,139.94,3.41395404]
[1763352866889,3.23337597,139.97,139.94,3.41395404]
[1763352867187,0.05337597,139.97,139.94,3.41395404]
[1763352867380,3.18,140.03,139.95,3.36]
[1763352868492,3.18,140.03,139.94,9.28716737]
[1763352868493,0.04849731,140.0,139.99,3.36]
[1763352868786,0.04849731,140.0,139.98,0.05138698]
[1763352868988,3.22849731,140.0,139.98,0.05138698]
[1763352871399,5.8536712,140.0,139.98,0.05138698]
[1763352871694,3.18,139.99,139.98,0.05138698]
[1763352873696,5.80517389,139.99,139.98,0.05138698]
[1763352876103,3.22849731,140.0,139.98,0.05138698]
[1763352876600,0.04849731,140.0,139.98,3.41138698]
[1763352878599,3.22849731,140.0,139.98,0.05138698]
[1763352879188,3.18,139.98,139.91,3.36]
[1763352879392,2.62517389,139.96,139.91,3.36]
[1763352879597,3.18,139.98,139.91,3.36]
[1763352879598,2.62517389,139.98,139.91,3.36]
[1763352879789,3.18,139.99,139.91,3.36]
[1763352880091,0.05410601,139.96,139.95,3.36]
[1763352880294,3.18,140.02,139.95,3.36]
[1763352880295,0.04571199,139.97,139.95,3.36]
[1763352880496,3.18,140.08,139.97,3.36]
[1763352880699,3.18,140.08,140.0,3.36]
[1763352881405,3.18,140.08,140.03,3.40518442]
[1763352881406,0.04782186,140.05,140.03,3.40518442]
[1763352881905,0.04782186,140.05,140.03,0.04518442]
[1763352881906,3.22782186,140.05,140.03,0.04518442]
[1763352883102,3.18,140.04,140.03,0.04518442]
[1763352883607,6.6322763,140.09,140.03,3.40518442]
[1763352883797,8.83863714,140.11,140.03,3.40518442]
[1763352883798,3.18,140.1,140.03,3.40518442]
[1763352884207,5.80517389,140.1,140.03,3.40518442]
[1763352884599,0.04825206,140.08,140.03,3.40518442]
[1763352884905,3.22825206,140.08,140.03,3.40518442]
[1763352885106,7.88576985,140.08,140.03,0.04518442]
[1763352885312,3.18,140.04,140.03,0.04518442]
[1763352885503,3.18,140.04,139.96,3.36]
[1763352886005,4.65751779,140.02,139.96,3.36]
[1763352886306,7.83751779,140.02,139.96,3.36]
[1763352886500,3.22564103,140.0,139.98,0.04650613]
[1763352886903,7.83751779,139.99,139.92,3.36]
[1763352887904,0.05169811,139.97,139.94,0.0485139]
[1763352888295,3.23169811,139.97,139.94,0.0485139]
[1763352891911,3.27,139.95,139.94,0.0485139]
[1763352892817,3.27,139.95,139.88,3.4]
[1763352893704,3.32165793,139.93,139.9,0.03926207]
[1763352893908,3.32165793,139.93,139.9,3.43926207]
[1763352894814,0.05165793,139.93,139.9,3.43926207]
[1763352901323,3.27,140.0,139.9,3.43926207]
[1763352901621,3.27,140.0,139.91,3.4]
[1763352902411,3.32253392,139.97,139.94,0.05155117]
[1763352904923,0.05253392,139.97,139.94,3.45155117]
[1763352909827,0.05253392,139.97,139.94,5.13078377]
[1763352910024,0.05253392,139.97,139.95,3.4]
[1763352911031,0.05253392,139.97,139.96,5.0792326]
[1763352912628,20.5492326,140.03,139.96,5.0792326]
[1763352912930,20.5492326,140.03,139.97,3.4]
[1763352913527,18.87,140.03,139.99,0.04775599]
[1763352913732,3.31653894,140.01,139.99,0.04775599]
[1763352915230,1.6792326,140.0,139.99,0.04775599]
[1763352915429,3.27,139.99,139.94,3.4]
[1763352916433,3.31556858,139.98,139.95,0.04816219]
[1763352919741,3.31556858,139.98,139.95,3.28816219]
[1763352919944,3.31556858,139.98,139.95,0.04816219]
[1763352922843,4.99480118,139.98,139.95,0.04816219]
[1763352923035,3.1,139.97,139.95,0.04816219]
[1763352936058,3.1,139.95,139.87,3.21]
[1763352936259,3.1,139.92,139.87,3.21]
[1763352936554,1.6792326,139.91,139.85,3.21]
[1763352936757,3.1,139.9,139.85,3.21]
[1763352936950,3.14826863,139.89,139.86,3.25719598]
[1763352937852,0.04826863,139.89,139.87,3.21]
[1763352943957,3.14826863,139.89,139.86,0.04719598]
[1763352944262,3.14826863,139.89,139.86,3.25719598]
[1763352945463,3.14826863,139.89,139.86,0.04719598]
[1763352949457,3.14826863,139.89,139.8,2.62672656]
[1763352949458,3.14826863,139.89,139.8,3.21]
[1763352949663,28.63360679,139.93,139.8,3.21]
[1763352949664,3.1,139.87,139.8,3.21]
[1763352949865,3.1,139.86,139.8,3.21]
[1763352950466,3.1,139.83,139.8,3.21]
[1763352951073,3.1,139.83,139.79,3.21]
[1763352954873,3.1,139.83,139.73,3.37]
[1763352955073,3.22707914,139.79,139.73,3.37]
[1763352955569,0.04707914,139.79,139.73,3.37]
[1763352955763,0.04707914,139.79,139.75,3.37]
[1763352955969,0.0496681,139.78,139.75,3.37]
[1763352956174,0.0496681,139.78,139.77,3.37]
[1763352956672,0.0496681,139.78,139.77,4.81]
[1763352956870,0.0496681,139.78,139.77,3.37]
[1763352957072,3.18,139.9,139.78,3.37]
[1763352957381,6.6322763,139.94,139.84,3.37]
[1763352957382,3.18,139.93,139.84,3.37]
[1763352958065,0.05169863,139.9,139.88,3.37]
[1763352958261,0.05169863,139.9,139.87,0.04529612]
[1763352958472,0.05169863,139.9,139.87,3.41529612]
[1763352960870,5.80672656,139.96,139.87,3.41529612]
[1763352961070,5.80672656,139.96,139.87,3.37]
[1763352961270,3.18,139.96,139.88,3.37]
[1763352961881,0.04715873,139.93,139.91,3.42202656]
[1763352962087,0.04715873,139.93,139.91,3.41889251]
[1763352962772,0.04715873,139.93,139.91,0.04889251]
[1763352964475,0.04715873,139.93,139.91,3.41889251]
[1763352966584,15.88468227,140.04,139.92,3.37]
[1763352966585,2.62672656,140.01,139.92,3.37]
[1763352966779,3.18,140.02,139.92,3.37]
[1763352967481,0.05481646,139.98,139.96,3.42358927]
[1763352967682,0.05481646,139.98,139.96,0.05358927]
[1763352967683,3.23481646,139.98,139.96,0.05358927]
[1763352967986,0.05481646,139.98,139.96,3.42358927]
[1763352969391,3.23481646,139.98,139.96,0.05358927]
[1763352970278,3.23481646,139.98,139.91,3.37]
[1763352970482,3.18,139.98,139.91,3.37]
[1763352970679,3.18,139.98,139.84,3.37]
[1763352970881,3.18,139.95,139.84,3.37]
[1763352971282,0.04630298,139.91,139.88,0.04605472]
[1763352971594,0.04630298,139.91,139.89,3.37]
[1763352976593,0.04630298,139.91,139.88,0.04605472]
[1763352976594,3.14630298,139.91,139.88,0.04605472]
[1763352980092,3.14630298,139.91,139.88,3.39605472]
[1763352980782,3.14630298,139.91,139.88,0.04605472]
[1763352981594,0.04630298,139.91,139.89,3.32]
[1763352982985,0.04630298,139.91,139.88,3.36605472]
[1763352983784,3.22630298,139.91,139.88,0.04605472]
[1763352985796,3.22630298,139.91,139.88,3.36605472]
[1763352987097,3.22630298,139.91,139.88,0.04605472]
[1763352988599,3.22630298,139.91,139.82,3.32]
[1763352988891,3.18,139.91,139.82,3.32]
[1763352989592,7.30751254,139.92,139.85,3.36665444]
[1763352989593,0.04811933,139.88,139.85,3.36665444]
[1763352989796,0.04726925,139.88,139.85,3.36524587]
[1763352990292,3.18,139.95,139.85,4.78524587]
[1763352990497,8.83863714,139.99,139.87,3.32]
[1763352990498,3.18,139.98,139.87,3.32]
[1763352990796,3.18,139.98,139.83,6.65716363]
[1763352990797,3.18,139.98,139.9,3.32]
[1763352991395,0.0498612,139.95,139.93,3.36873982]
[1763352992690,3.2298612,139.95,139.93,0.04873982]
[1763352994109,9.6661612,139.95,139.93,0.04873982]
[1763352994898,6.4861612,139.95,139.93,3.36873982]
[1763352996606,0.0498612,139.95,139.93,3.36873982]
[1763352999498,3.2298612,139.95,139.93,0.04873982]
[1763353002203,78.4698612,139.95,139.93,0.04873982]
[1763353002398,3.18,139.94,139.93,0.04873982]
[1763353008213,0.0498612,139.95,139.93,3.36873982]
[1763353008812,0.0498612,139.95,139.93,5.04797833]
[1763353009217,0.0498612,139.95,139.94,3.32]
[1763353009617,0.0498612,139.95,139.93,1.72797833]
[1763353009916,0.0498612,139.95,139.93,5.04797833]
[1763353010217,3.2298612,139.95,139.93,5.04797833]
[1763353010906,3.2298612,139.95,139.93,1.72797833]
[1763353011109,3.2298612,139.95,139.93,0.04873982]
[1763353013212,3.29,139.94,139.93,0.04873982]
[1763353020730,0.0498612,139.95,139.93,0.04873982]
[1763353020920,75.16,139.94,139.93,3.31873982]
[1763353021324,75.16,139.94,139.93,0.04873982]
[1763353025426,78.45,139.94,139.93,0.04873982]
[1763353026727,3.29,139.93,139.88,3.27]
[1763353027626,0.04594187,139.92,139.9,3.27]
[1763353030029,3.33594187,139.92,139.9,3.27]
[1763353030224,3.33594187,139.92,139.89,0.04775067]
[1763353030524,3.29,139.89,139.84,4.43]
[1763353030724,3.29,139.87,139.84,4.43]
[1763353031622,3.34486303,139.87,139.84,4.43]
[1763353032225,0.05486303,139.87,139.85,3.27]
[1763353032426,75.21486303,139.87,139.85,3.27]
[1763353033328,0.05486303,139.87,139.85,3.27]
[1763353033531,75.21486303,139.87,139.85,3.27]
[1763353034027,75.21486303,139.87,139.86,3.27]
[1763353034028,0.05486303,139.87,139.86,3.27]
[1763353036524,0.05486303,139.87,139.85,4.94923851]
[1763353037434,0.05486303,139.87,139.85,3.27]
[1763353038533,0.05486303,139.87,139.84,6.10923851]
[1763353038534,0.05486303,139.87,139.86,4.82923851]
[1763353039836,27.76,139.92,139.89,3.15]
[1763353040035,3.34,139.96,139.9,1.67923851]
[1763353040236,8.32347232,139.97,139.91,3.15]
[1763353040237,78.48,139.94,139.91,3.15]
[1763353040837,3.34,139.93,139.91,3.20351488]
[1763353041240,78.53004459,139.94,139.91,3.20351488]
[1763353042641,3.39,139.93,139.91,3.20351488]
[1763353043041,75.19004459,139.94,139.91,3.20351488]
[1763353043334,78.58004459,139.94,139.91,3.20351488]
[1763353043539,0.05004459,139.94,139.92,3.32]
[1763353044338,0.05004459,139.94,139.93,4.99923851]
[1763353044839,75.12,139.99,139.94,3.32]
[1763353045046,6.64423381,140.03,139.98,3.32]
[1763353045234,3.39,140.02,139.98,3.32]
[1763353045839,0.04649121,140.01,139.99,5.0470527]
[1763353046040,3.39,140.06,140.0,3.32]
[1763353046241,78.57,140.06,140.02,3.32]
[1763353047055,0.05496742,140.05,140.03,3.37067852]
[1763353047847,3.44496742,140.05,140.03,0.05067852]
[1763353050654,3.39,140.04,139.94,3.32]
[1763353050946,3.39,140.03,139.94,3.32]
[1763353051148,3.39,140.01,139.94,3.32]
[1763353051947,0.04843696,139.99,139.97,3.32]
[1763353052939,19.58,140.03,139.97,3.32]
[1763353053748,22.97,140.03,139.97,3.32]
[1763353053947,3.39,140.0,139.99,0.04631017]
[1763353055360,3.39,139.99,139.91,3.32]
[1763353055654,3.39,139.99,139.89,5.09]
[1763353055655,3.39,139.99,139.9,3.32]
[1763353056657,3.39,139.95,139.93,0.0485719]
[1763353059155,3.39,139.95,139.89,5.09]
[1763353060258,3.39,139.95,139.91,0.04771456]
[1763353061561,75.16,139.94,139.91,0.04771456]
[1763353061767,3.39,139.93,139.91,0.04771456]
[1763353062565,3.39,139.93,139.89,5.09]
[1763353062872,3.39,139.9,139.89,4.20274032]
[1763353063367,3.39,139.9,139.83,3.32]
[1763353063569,3.43730248,139.88,139.83,3.32]
[1763353063770,78.59730248,139.88,139.83,3.32]
[1763353064064,3.43730248,139.88,139.83,3.32]
[1763353064271,3.39,139.87,139.83,3.32]
[1763353064870,78.61730248,139.88,139.83,3.32]
[1763353065868,75.22730248,139.88,139.83,3.32]
[1763353066761,0.04730248,139.88,139.83,3.32]
[1763353067973,3.43730248,139.88,139.83,3.32]
[1763353068165,0.04730248,139.88,139.83,3.32]
[1763353069470,3.43730248,139.88,139.83,3.32]
[1763353070364,3.43730248,139.88,139.79,3.32]
[1763353070673,0.04902471,139.85,139.79,3.32]
[1763353075468,3.35902471,139.85,139.79,3.32]
[1763353079580,0.04902471,139.85,139.79,3.32]
[1763353079890,0.04902471,139.85,139.8,3.36]
[1763353080776,3.31,139.91,139.8,3.36]
[1763353080977,3.31,139.91,139.82,3.36]
[1763353081281,3.31,139.91,139.83,3.36]
[1763353081780,0.05124241,139.88,139.87,3.36]
[1763353081971,3.31,139.94,139.87,3.36]
[1763353083086,3.31,139.91,139.89,0.04919576]
[1763353090887,5.93747827,139.91,139.89,0.04919576]
[1763353091086,3.31,139.9,139.89,0.04919576]
[1763353094480,3.31,139.89,139.82,3.36]
[1763353094678,3.31,139.86,139.82,3.36]
[1763353095590,0.05480284,139.85,139.83,0.05191137]
[1763353096689,3.38480284,139.85,139.83,0.05191137]
[1763353097494,0.05480284,139.85,139.83,0.05191137]
[1763353098603,3.38480284,139.85,139.83,0.05191137]
[1763353103298,3.38480284,139.85,139.78,4.44]
[1763353103502,3.12,139.84,139.78,4.44]
[1763353103915,3.12,139.83,139.75,3.36]
[1763353104210,3.12,139.81,139.75,3.36]
[1763353104395,3.12,139.79,139.75,3.36]
[1763353105507,3.12,139.79,139.72,3.36]
[1763353105695,0.05317371,139.77,139.72,9.63]
[1763353106002,0.05317371,139.77,139.73,3.36]
[1763353115109,3.12,139.85,139.75,3.36]
[1763353115308,3.12,139.83,139.75,3.36]
[1763353116115,0.04609949,139.8,139.78,3.40624302]
[1763353116606,3.16609949,139.8,139.78,0.04624302]
[1763353122116,3.12,139.79,139.78,0.04624302]
[1763353122319,3.12,139.79,139.75,5.08]
[1763353125618,0.04609949,139.8,139.76,3.36]
[1763353126914,0.04609949,139.8,139.77,3.36]
[1763353130120,0.04609949,139.8,139.79,3.36]
[1763353131421,3.22609949,139.8,139.77,3.34]
[1763353131722,3.22609949,139.8,139.76,3.34]
[1763353134132,3.18,139.79,139.75,5.08]
[1763353134332,3.18,139.79,139.75,8.42]
[1763353136125,3.18,139.79,139.75,5.08]
[1763353136332,1.68310369,139.78,139.75,5.08]
[1763353136521,3.18,139.77,139.75,5.08]
[1763353136827,3.18,139.77,139.73,3.34]
[1763353137026,0.05368648,139.76,139.73,3.34]
[1763353139522,0.05368648,139.76,139.75,3.34]
[1763353142332,0.05368648,139.76,139.72,6.61310369]
[1763353142333,0.05368648,139.76,139.73,3.34]
[1763353143237,3.23368648,139.76,139.73,3.34]
[1763353143418,1.73679017,139.76,139.72,4.93]
[1763353143626,3.18,139.75,139.72,8.27]
[1763353144634,3.18,139.75,139.73,3.34]
[1763353145136,0.05368648,139.76,139.73,3.34]
[1763353146233,3.23368648,139.76,139.73,3.34]
[1763353146426,3.23368648,139.76,139.72,8.27]
[1763353147137,1.68310369,139.75,139.72,4.93]
[1763353147434,4.86310369,139.75,139.72,4.93]
[1763353147836,4.86310369,139.75,139.72,8.27]
[1763353148225,3.18,139.75,139.72,8.27]
[1763353151639,3.18,139.81,139.75,3.34]
[1763353151829,3.18,139.81,139.76,3.34]
[1763353152132,3.18,139.81,139.74,5.02310369]
[1763353152531,3.18,139.81,139.75,3.34]
[1763353152732,0.04697869,139.79,139.76,5.0689556]
[1763353152938,0.04697869,139.79,139.77,3.34]
[1763353156230,3.22697869,139.79,139.76,0.04585191]
[1763353156839,0.04697869,139.79,139.76,3.34585191]
[1763353157035,3.39697869,139.79,139.76,3.34585191]
[1763353158941,3.39697869,139.79,139.76,0.04585191]
[1763353159334,0.04697869,139.79,139.76,3.34585191]
[1763353159638,3.39697869,139.79,139.76,3.34585191]
[1763353161246,3.39697869,139.79,139.76,0.04585191]
[1763353161933,3.33,139.78,139.76,0.04585191]
[1763353162535,5.01310369,139.78,139.76,0.04585191]
[1763353162736,3.33,139.77,139.76,0.04585191]
[1763353165644,6.65930264,139.79,139.76,3.39585191]
[1763353165845,3.33,139.77,139.76,0.04585191]
[1763353170549,78.49,139.77,139.76,0.04585191]
[1763353170744,0.04697869,139.79,139.76,3.39585191]
[1763353171642,0.04697869,139.79,139.78,3.35]
[1763353173145,3.33,139.83,139.78,3.35]
[1763353173345,78.49,139.82,139.78,3.35]
[1763353174149,0.04690385,139.81,139.79,0.05294697]
[1763353174857,3.37690385,139.81,139.79,0.05294697]
[1763353175357,3.33,139.8,139.75,8.72]
[1763353176052,3.33,139.8,139.76,3.35]
[1763353176460,3.33,139.8,139.77,0.05289]
[1763353177363,3.33,139.8,139.77,3.40289]
[1763353178161,0.04690385,139.81,139.79,3.35]
[1763353181658,3.37690385,139.81,139.77,3.40289]
[1763353186664,3.37690385,139.81,139.77,0.05289]
[1763353186665,3.33,139.8,139.77,0.05289]
[1763353187365,3.33,139.78,139.77,0.05289]
[1763353187564,3.33,139.78,139.75,5.37]